[Event "*** Titled Tuesday Blitz"]
[Site "Chess.com"]
[Date "2020.04.21"]
[Round "3"]
[White "yavrukurt40"]
[Black "StockholmMissile"]
[Result "1-0"]
[WhiteElo "2781"]
[BlackElo "2451"]
[TimeControl "180+1"]
[EndTime "10:25:54 PDT"]
[Termination "yavrukurt40 won by resignation"]

1. e4 {[%clk 0:03:00.6]} 1... e5 {[%clk 0:02:59.8]} 2. Nf3 {[%clk 0:03:00.3]}
2... Nc6 {[%clk 0:02:59.7]} 3. Nc3 {[%clk 0:03:00.8]} 3... Nf6 {[%clk
0:02:59.2]} 4. Bb5 {[%clk 0:03:01.1]} 4... Bb4 {[%clk 0:02:58.8]} 5. O-O {[%clk
0:03:01.2]} 5... O-O {[%clk 0:02:57.9]} 6. d3 {[%clk 0:03:01.3]} 6... Bxc3
{[%clk 0:02:58]} 7. bxc3 {[%clk 0:03:02.2]} 7... d6 {[%clk 0:02:57]} 8. Bg5
{[%clk 0:03:02.7]} 8... Ne7 {[%clk 0:02:56.8]} 9. Nh4 {[%clk 0:03:02.4]} 9...
Ng6 {[%clk 0:02:54.7]} 10. Nxg6 {[%clk 0:03:02.5]} 10... fxg6 {[%clk 0:02:49.8]}
11. f4 {[%clk 0:03:03.4]} 11... exf4 {[%clk 0:02:48.7]} 12. Rxf4 {[%clk
0:03:04.3]} 12... Kh8 {[%clk 0:02:43.4]} 13. Qf3 {[%clk 0:03:03.4]} 13... c6
{[%clk 0:02:35.1]} 14. Bc4 {[%clk 0:03:03.4]} 14... h6 {[%clk 0:02:18.4]} 15.
Bxf6 {[%clk 0:02:58]} 15... Rxf6 {[%clk 0:02:17.9]} 16. Rf1 {[%clk 0:02:58.9]}
16... Rxf4 {[%clk 0:02:14]} 17. Qxf4 {[%clk 0:02:59.8]} 17... Bd7 {[%clk
0:02:08]} 18. Qxd6 {[%clk 0:02:58.8]} 18... g5 {[%clk 0:01:43.8]} 19. Rf7 {[%clk
0:02:56.2]} 19... Bg4 {[%clk 0:01:39.2]} 20. Qxd8+ {[%clk 0:02:55.1]} 20... Rxd8
{[%clk 0:01:40.1]} 21. Rxb7 {[%clk 0:02:56]} 21... Bd1 {[%clk 0:01:40.2]} 22. d4
{[%clk 0:02:53]} 22... Bxc2 {[%clk 0:01:37.5]} 23. e5 {[%clk 0:02:53.5]} 23...
a5 {[%clk 0:01:35.1]} 24. e6 {[%clk 0:02:53.8]} 24... Bg6 {[%clk 0:01:34.3]} 25.
e7 {[%clk 0:02:44.8]} 25... Re8 {[%clk 0:01:33.9]} 26. d5 {[%clk 0:02:44.4]}
26... cxd5 {[%clk 0:01:32.9]} 27. Bxd5 {[%clk 0:02:45.3]} 27... Rc8 {[%clk
0:01:15.8]} 28. c4 {[%clk 0:02:41.8]} 28... Be8 {[%clk 0:01:11.3]} 29. Kf2
{[%clk 0:02:40.3]} 29... g6 {[%clk 0:01:10.3]} 30. Ke3 {[%clk 0:02:40.8]} 30...
Kg7 {[%clk 0:01:10.3]} 31. Kd4 {[%clk 0:02:41.3]} 31... Kf6 {[%clk 0:01:10.2]}
32. c5 {[%clk 0:02:41.8]} 32... a4 {[%clk 0:01:07.5]} 33. c6 {[%clk 0:02:39.9]}
33... h5 {[%clk 0:00:59.5]} 34. Kc5 {[%clk 0:02:39.1]} 34... Ke5 {[%clk
0:00:57.5]} 35. Rb1 {[%clk 0:02:39.6]} 35... h4 {[%clk 0:00:47.4]} 36. Re1+
{[%clk 0:02:39]} 36... Kf6 {[%clk 0:00:47.6]} 37. Kd6 {[%clk 0:02:39.2]} 37...
g4 {[%clk 0:00:46.8]} 38. c7 {[%clk 0:02:39.5]} 38... g3 {[%clk 0:00:44.1]} 39.
hxg3 {[%clk 0:02:40.4]} 39... hxg3 {[%clk 0:00:45]} 40. Be6 {[%clk 0:02:41.3]}
1-0

[Event "*** Titled Tuesday Blitz"]
[Site "Chess.com"]
[Date "2020.04.21"]
[Round "3"]
[White "WPWPWP-2015"]
[Black "SameerMujumdar"]
[Result "1-0"]
[WhiteElo "2414"]
[BlackElo "2201"]
[TimeControl "180+1"]
[EndTime "10:26:04 PDT"]
[Termination "WPWPWP-2015 won by resignation"]

1. e4 {[%clk 0:03:00.9]} 1... c5 {[%clk 0:02:37.8]} 2. Nf3 {[%clk 0:02:57.8]}
2... d6 {[%clk 0:02:34.1]} 3. d4 {[%clk 0:02:57.6]} 3... cxd4 {[%clk 0:02:35]}
4. Nxd4 {[%clk 0:02:57.2]} 4... Nf6 {[%clk 0:02:35.9]} 5. Nc3 {[%clk 0:02:57.3]}
5... Nc6 {[%clk 0:02:35.9]} 6. Be2 {[%clk 0:02:56.3]} 6... e6 {[%clk 0:02:35.7]}
7. O-O {[%clk 0:02:55.8]} 7... Bd7 {[%clk 0:02:35.8]} 8. Be3 {[%clk 0:02:55.7]}
8... Nxd4 {[%clk 0:02:31.9]} 9. Bxd4 {[%clk 0:02:55.5]} 9... Bc6 {[%clk
0:02:32.8]} 10. f3 {[%clk 0:02:54.3]} 10... Qc7 {[%clk 0:02:31.9]} 11. Qd2
{[%clk 0:02:53]} 11... a6 {[%clk 0:02:31.6]} 12. a4 {[%clk 0:02:51.1]} 12... Be7
{[%clk 0:02:27.2]} 13. a5 {[%clk 0:02:50]} 13... O-O {[%clk 0:02:27.1]} 14. Kh1
{[%clk 0:02:49.1]} 14... d5 {[%clk 0:02:18.1]} 15. e5 {[%clk 0:02:47.4]} 15...
Nd7 {[%clk 0:02:17.6]} 16. f4 {[%clk 0:02:47.3]} 16... Nc5 {[%clk 0:02:11.4]}
17. f5 {[%clk 0:02:41.9]} 17... exf5 {[%clk 0:02:07.6]} 18. Rxf5 {[%clk
0:02:39.1]} 18... Ne6 {[%clk 0:02:07]} 19. Bb6 {[%clk 0:02:30.4]} 19... Qd7
{[%clk 0:02:05.4]} 20. Bg4 {[%clk 0:02:25.7]} 20... d4 {[%clk 0:02:03.3]} 21.
Ne2 {[%clk 0:02:15.6]} 21... Be4 {[%clk 0:01:50.7]} 22. Rf2 {[%clk 0:02:11.2]}
22... Qd5 {[%clk 0:01:50.1]} 23. Nxd4 {[%clk 0:02:00]} 23... Bg5 {[%clk
0:01:47.2]} 24. Bxe6 {[%clk 0:01:48.4]} 24... fxe6 {[%clk 0:01:46.7]} 25. Rxf8+
{[%clk 0:01:45.7]} 25... Rxf8 {[%clk 0:01:47.2]} 26. Qxg5 {[%clk 0:01:45.4]}
26... Rf2 {[%clk 0:01:44.8]} 27. Nf3 {[%clk 0:01:02.6]} 27... Bxf3 {[%clk
0:01:37.1]} 28. Bxf2 {[%clk 0:01:01.1]} 1-0

[Event "*** Titled Tuesday Blitz"]
[Site "Chess.com"]
[Date "2020.04.21"]
[Round "3"]
[White "swayamsm"]
[Black "JulAnt"]
[Result "0-1"]
[WhiteElo "2684"]
[BlackElo "2509"]
[TimeControl "180+1"]
[EndTime "10:26:09 PDT"]
[Termination "JulAnt won by resignation"]

1. d4 {[%clk 0:03:00.9]} 1... Nf6 {[%clk 0:02:59.8]} 2. Nf3 {[%clk 0:03:00.6]}
2... g6 {[%clk 0:02:59.4]} 3. Bf4 {[%clk 0:02:59.7]} 3... Bg7 {[%clk 0:02:59.4]}
4. Nbd2 {[%clk 0:02:59.7]} 4... d6 {[%clk 0:02:59.7]} 5. e4 {[%clk 0:02:56.9]}
5... O-O {[%clk 0:02:59.4]} 6. h4 {[%clk 0:02:54.9]} 6... h5 {[%clk 0:02:57.1]}
7. Bd3 {[%clk 0:02:53.4]} 7... c5 {[%clk 0:02:57.2]} 8. d5 {[%clk 0:02:52.9]}
8... e6 {[%clk 0:02:48.2]} 9. dxe6 {[%clk 0:02:50.4]} 9... Bxe6 {[%clk
0:02:47.3]} 10. Ng5 {[%clk 0:02:50.5]} 10... Bc8 {[%clk 0:02:35.6]} 11. Nc4
{[%clk 0:02:49]} 11... d5 {[%clk 0:02:31.9]} 12. exd5 {[%clk 0:02:44]} 12...
Nxd5 {[%clk 0:02:31.1]} 13. Bd6 {[%clk 0:02:43.3]} 13... Re8+ {[%clk 0:02:29.9]}
14. Kf1 {[%clk 0:02:43]} 14... b5 {[%clk 0:02:23]} 15. Bxb8 {[%clk 0:02:39.3]}
15... Rxb8 {[%clk 0:02:10.8]} 16. Nd2 {[%clk 0:02:38.2]} 16... c4 {[%clk
0:02:00.1]} 17. Be4 {[%clk 0:02:34.2]} 17... c3 {[%clk 0:01:54.9]} 18. Bxd5
{[%clk 0:02:16.5]} 18... Qxd5 {[%clk 0:01:45.5]} 19. bxc3 {[%clk 0:02:17.4]}
19... Bxc3 {[%clk 0:01:43.7]} 20. Ndf3 {[%clk 0:02:02.4]} 20... Qc4+ {[%clk
0:01:43.7]} 21. Kg1 {[%clk 0:02:02.1]} 21... Bxa1 {[%clk 0:01:39.8]} 22. Qxa1
{[%clk 0:02:03]} 22... Bg4 {[%clk 0:01:36.3]} 23. Qf6 {[%clk 0:01:57.7]} 23...
Rb6 {[%clk 0:01:32.5]} 24. Qb2 {[%clk 0:01:55.9]} 24... Rd6 {[%clk 0:01:24.1]}
25. g3 {[%clk 0:01:53.3]} 25... Rd1+ {[%clk 0:01:15.1]} 26. Kg2 {[%clk 0:01:53]}
26... Rxh1 {[%clk 0:01:15.3]} 27. Kxh1 {[%clk 0:01:53.1]} 27... Qf1+ {[%clk
0:01:15.5]} 28. Ng1 {[%clk 0:01:52.5]} 28... Re1 {[%clk 0:00:58.5]} 0-1

[Event "*** Titled Tuesday Blitz"]
[Site "Chess.com"]
[Date "2020.04.21"]
[Round "3"]
[White "Filip_Covic"]
[Black "KikaLaurincova"]
[Result "1-0"]
[WhiteElo "2306"]
[BlackElo "1979"]
[TimeControl "180+1"]
[EndTime "10:26:12 PDT"]
[Termination "Filip_Covic won by resignation"]

1. d4 {[%clk 0:03:00.9]} 1... Nf6 {[%clk 0:02:59.6]} 2. c4 {[%clk 0:02:57.1]}
2... g6 {[%clk 0:03:00]} 3. Nc3 {[%clk 0:02:56.2]} 3... d5 {[%clk 0:03:00.7]} 4.
cxd5 {[%clk 0:02:57.1]} 4... Nxd5 {[%clk 0:03:01.6]} 5. e4 {[%clk 0:02:57.8]}
5... Nxc3 {[%clk 0:03:02.3]} 6. bxc3 {[%clk 0:02:58.2]} 6... Bg7 {[%clk
0:03:03.2]} 7. Nf3 {[%clk 0:02:58.6]} 7... O-O {[%clk 0:03:03.9]} 8. Be3 {[%clk
0:02:59.1]} 8... c5 {[%clk 0:03:04.2]} 9. Qd2 {[%clk 0:02:59.7]} 9... Nc6 {[%clk
0:03:04.8]} 10. d5 {[%clk 0:02:58.3]} 10... Ne5 {[%clk 0:03:03.3]} 11. Nxe5
{[%clk 0:02:57.5]} 11... Bxe5 {[%clk 0:03:04.2]} 12. Bxc5 {[%clk 0:02:58.1]}
12... Qc7 {[%clk 0:02:58.9]} 13. Bd4 {[%clk 0:02:55]} 13... Bf4 {[%clk
0:02:59.2]} 14. Be3 {[%clk 0:02:50.1]} 14... Be5 {[%clk 0:02:58.5]} 15. Rc1
{[%clk 0:02:50.3]} 15... e6 {[%clk 0:02:54.9]} 16. f4 {[%clk 0:02:45.2]} 16...
Bg7 {[%clk 0:02:51.3]} 17. d6 {[%clk 0:02:45.5]} 17... Qd7 {[%clk 0:02:42.7]}
18. Be2 {[%clk 0:02:39.1]} 18... b6 {[%clk 0:02:40.6]} 19. O-O {[%clk 0:02:36]}
19... Bb7 {[%clk 0:02:41]} 20. Bf3 {[%clk 0:02:35.6]} 20... Rfd8 {[%clk
0:02:37.3]} 21. e5 {[%clk 0:02:35.7]} 21... Bxf3 {[%clk 0:02:36.8]} 22. Rxf3
{[%clk 0:02:36.6]} 22... f6 {[%clk 0:02:37.4]} 23. Bd4 {[%clk 0:02:36]} 23... f5
{[%clk 0:02:35]} 24. Qb2 {[%clk 0:02:26.7]} 24... Rac8 {[%clk 0:02:34.5]} 25.
Qb3 {[%clk 0:02:24.1]} 25... Kf7 {[%clk 0:02:28.4]} 26. Bf2 {[%clk 0:02:17.2]}
26... Qc6 {[%clk 0:02:06.3]} 27. c4 {[%clk 0:01:58.6]} 27... g5 {[%clk
0:01:43.6]} 28. fxg5 {[%clk 0:01:47.7]} 28... Bxe5 {[%clk 0:01:43.6]} 29. c5
{[%clk 0:01:48.3]} 29... bxc5 {[%clk 0:01:38.2]} 30. Rxf5+ {[%clk 0:01:48]}
30... Kg8 {[%clk 0:01:20.2]} 31. Qxe6+ {[%clk 0:01:46.2]} 31... Kh8 {[%clk
0:01:17.4]} 32. Qxe5+ {[%clk 0:01:46.2]} 32... Kg8 {[%clk 0:01:18]} 33. Qe6+
{[%clk 0:01:38.3]} 33... Kh8 {[%clk 0:01:17.9]} 34. Qf6+ {[%clk 0:01:38.4]}
34... Kg8 {[%clk 0:01:18]} 35. Qf7+ {[%clk 0:01:38.4]} 35... Kh8 {[%clk
0:01:18.1]} 36. Bg3 {[%clk 0:01:37.7]} 1-0

[Event "*** Titled Tuesday Blitz"]
[Site "Chess.com"]
[Date "2020.04.21"]
[Round "3"]
[White "thedjoker98"]
[Black "Echecmat"]
[Result "0-1"]
[WhiteElo "2491"]
[BlackElo "2163"]
[TimeControl "180+1"]
[EndTime "10:26:19 PDT"]
[Termination "Echecmat won by checkmate"]

1. d4 {[%clk 0:02:56.2]} 1... Nf6 {[%clk 0:02:59.4]} 2. c4 {[%clk 0:02:56.3]}
2... g6 {[%clk 0:02:59.7]} 3. Nc3 {[%clk 0:02:56]} 3... Bg7 {[%clk 0:03:00.1]}
4. e4 {[%clk 0:02:55.3]} 4... d6 {[%clk 0:03:00.6]} 5. f3 {[%clk 0:02:54.9]}
5... O-O {[%clk 0:02:59.3]} 6. Be3 {[%clk 0:02:54.9]} 6... c5 {[%clk 0:02:52.4]}
7. Nge2 {[%clk 0:02:54.9]} 7... cxd4 {[%clk 0:02:50.9]} 8. Nxd4 {[%clk
0:02:55.8]} 8... Nc6 {[%clk 0:02:48.8]} 9. Be2 {[%clk 0:02:56.4]} 9... Bd7
{[%clk 0:02:48.2]} 10. O-O {[%clk 0:02:53.6]} 10... Rc8 {[%clk 0:02:48.6]} 11.
Rc1 {[%clk 0:02:52.4]} 11... a6 {[%clk 0:02:44.2]} 12. Qd2 {[%clk 0:02:51.4]}
12... Ne5 {[%clk 0:02:38.8]} 13. b3 {[%clk 0:02:50.8]} 13... Re8 {[%clk
0:02:13.6]} 14. h3 {[%clk 0:02:44.7]} 14... Qa5 {[%clk 0:02:05.9]} 15. f4 {[%clk
0:02:43.6]} 15... Nc6 {[%clk 0:02:05.1]} 16. Bf3 {[%clk 0:02:42]} 16... Nxd4
{[%clk 0:02:00.6]} 17. Bxd4 {[%clk 0:02:42.9]} 17... b5 {[%clk 0:02:00.7]} 18.
cxb5 {[%clk 0:02:40.9]} 18... e5 {[%clk 0:01:51.9]} 19. fxe5 {[%clk 0:02:33.9]}
19... dxe5 {[%clk 0:01:51.4]} 20. Be3 {[%clk 0:02:33.7]} 20... axb5 {[%clk
0:01:48.9]} 21. Rfd1 {[%clk 0:02:24.7]} 21... Red8 {[%clk 0:01:48.6]} 22. Bg5
{[%clk 0:02:17.7]} 22... Be6 {[%clk 0:01:30.4]} 23. Qe3 {[%clk 0:02:15.5]} 23...
Rxd1+ {[%clk 0:01:26]} 24. Rxd1 {[%clk 0:02:12.9]} 24... Rxc3 {[%clk 0:01:14.9]}
25. Qxc3 {[%clk 0:02:12.6]} 25... Qxc3 {[%clk 0:01:13.9]} 26. Rd8+ {[%clk
0:02:13.5]} 26... Bf8 {[%clk 0:01:14]} 27. Bxf6 {[%clk 0:02:12.9]} 27... Qc5+
{[%clk 0:01:12.3]} 28. Kh2 {[%clk 0:02:11.3]} 28... h5 {[%clk 0:01:11.4]} 29.
Re8 {[%clk 0:02:07.6]} 29... Kh7 {[%clk 0:01:09.1]} 30. a4 {[%clk 0:01:37]}
30... bxa4 {[%clk 0:01:06.6]} 31. bxa4 {[%clk 0:01:37.9]} 31... Bg7 {[%clk
0:01:06.5]} 32. Be7 {[%clk 0:01:35.6]} 32... Qf2 {[%clk 0:01:03.6]} 33. a5
{[%clk 0:01:34.4]} 33... Bh6 {[%clk 0:00:59.3]} 34. Bf6 {[%clk 0:01:33.9]} 34...
Bf4+ {[%clk 0:00:58.9]} 35. Kh1 {[%clk 0:01:34.8]} 35... Qf1# {[%clk 0:00:59]}
0-1

[Event "*** Titled Tuesday Blitz"]
[Site "Chess.com"]
[Date "2020.04.21"]
[Round "3"]
[White "Spring199"]
[Black "AustrianFalcon"]
[Result "0-1"]
[WhiteElo "2379"]
[BlackElo "2598"]
[TimeControl "180+1"]
[EndTime "10:26:21 PDT"]
[Termination "AustrianFalcon won by resignation"]

1. d4 {[%clk 0:03:00.9]} 1... g6 {[%clk 0:02:59.3]} 2. c4 {[%clk 0:03:01.8]}
2... Bg7 {[%clk 0:03:00.2]} 3. Nc3 {[%clk 0:03:01.5]} 3... d6 {[%clk 0:02:59.8]}
4. e4 {[%clk 0:03:00.9]} 4... e5 {[%clk 0:02:59.1]} 5. d5 {[%clk 0:03:00.5]}
5... a5 {[%clk 0:02:58.5]} 6. Nge2 {[%clk 0:02:58.5]} 6... Ne7 {[%clk
0:02:53.3]} 7. h4 {[%clk 0:02:55.7]} 7... f5 {[%clk 0:02:50.6]} 8. h5 {[%clk
0:02:52.1]} 8... f4 {[%clk 0:02:51.1]} 9. hxg6 {[%clk 0:02:49.1]} 9... hxg6
{[%clk 0:02:51.2]} 10. Rxh8+ {[%clk 0:02:49.2]} 10... Bxh8 {[%clk 0:02:50.6]}
11. g3 {[%clk 0:02:45.1]} 11... fxg3 {[%clk 0:02:46]} 12. Nxg3 {[%clk
0:02:44.5]} 12... Nd7 {[%clk 0:02:28]} 13. Bg5 {[%clk 0:02:42.9]} 13... Bf6
{[%clk 0:02:24.1]} 14. Qd2 {[%clk 0:02:40]} 14... Nxd5 {[%clk 0:02:20.2]} 15.
Nxd5 {[%clk 0:02:27.6]} 15... Bxg5 {[%clk 0:02:19.8]} 16. Nxc7+ {[%clk
0:02:27.1]} 16... Qxc7 {[%clk 0:02:20.3]} 17. Qxg5 {[%clk 0:02:26.4]} 17... Nf8
{[%clk 0:02:21.2]} 18. Rc1 {[%clk 0:02:10.7]} 18... Qe7 {[%clk 0:02:18.2]} 19.
Qe3 {[%clk 0:02:05.9]} 19... Ne6 {[%clk 0:02:15.6]} 20. Ne2 {[%clk 0:01:55]}
20... Bd7 {[%clk 0:02:07.8]} 21. Qb6 {[%clk 0:01:52.3]} 21... Nc5 {[%clk
0:02:05.9]} 22. Ng3 {[%clk 0:01:49.5]} 22... Bc6 {[%clk 0:02:01.2]} 23. Rd1
{[%clk 0:01:23.3]} 23... Ra6 {[%clk 0:01:58.4]} 24. Qxa6 {[%clk 0:00:59.7]}
24... bxa6 {[%clk 0:01:55.2]} 25. a3 {[%clk 0:00:59]} 25... Nxe4 {[%clk
0:01:53.8]} 26. Nxe4 {[%clk 0:00:57.3]} 26... Bxe4 {[%clk 0:01:54.7]} 27. b4
{[%clk 0:00:57]} 27... axb4 {[%clk 0:01:54.4]} 28. axb4 {[%clk 0:00:57.9]} 28...
d5 {[%clk 0:01:54.3]} 29. c5 {[%clk 0:00:57.1]} 29... Qb7 {[%clk 0:01:52.4]} 0-1

[Event "*** Titled Tuesday Blitz"]
[Site "Chess.com"]
[Date "2020.04.21"]
[Round "3"]
[White "Anton_Demchenko"]
[Black "yoolund"]
[Result "1-0"]
[WhiteElo "2836"]
[BlackElo "2554"]
[TimeControl "180+1"]
[EndTime "10:26:28 PDT"]
[Termination "Anton_Demchenko won by resignation"]

1. d4 {[%clk 0:03:00.9]} 1... Nf6 {[%clk 0:02:58.9]} 2. Nf3 {[%clk 0:03:01.3]}
2... g6 {[%clk 0:02:56.1]} 3. Bf4 {[%clk 0:03:01.4]} 3... Bg7 {[%clk 0:02:56]}
4. c3 {[%clk 0:03:01.9]} 4... d6 {[%clk 0:02:55.9]} 5. Nbd2 {[%clk 0:03:01.9]}
5... Nc6 {[%clk 0:02:55.8]} 6. e4 {[%clk 0:03:02.1]} 6... O-O {[%clk 0:02:44.5]}
7. Be2 {[%clk 0:03:02.1]} 7... Nd7 {[%clk 0:02:38.5]} 8. h4 {[%clk 0:03:02]}
8... e5 {[%clk 0:02:37.2]} 9. dxe5 {[%clk 0:03:02.9]} 9... Ncxe5 {[%clk
0:02:31.9]} 10. h5 {[%clk 0:03:00.7]} 10... Nxf3+ {[%clk 0:02:30.2]} 11. gxf3
{[%clk 0:02:48.1]} 11... Nb6 {[%clk 0:02:18.6]} 12. hxg6 {[%clk 0:02:45.5]}
12... hxg6 {[%clk 0:02:07.6]} 13. Qc2 {[%clk 0:02:32.4]} 13... d5 {[%clk
0:02:06.5]} 14. O-O-O {[%clk 0:02:28.2]} 14... Be6 {[%clk 0:02:02.8]} 15. Nb3
{[%clk 0:02:19.7]} 15... Qe7 {[%clk 0:01:59.9]} 16. Nd4 {[%clk 0:02:08.2]} 16...
Rad8 {[%clk 0:01:46.4]} 17. Rdg1 {[%clk 0:01:27.8]} 17... c5 {[%clk 0:01:31.1]}
18. Nf5 {[%clk 0:01:20.8]} 18... Bxf5 {[%clk 0:01:13.7]} 19. exf5 {[%clk
0:01:20.6]} 19... d4 {[%clk 0:00:45.3]} 20. fxg6 {[%clk 0:01:20]} 20... dxc3
{[%clk 0:00:44.7]} 21. gxf7+ {[%clk 0:01:17.9]} 21... Rxf7 {[%clk 0:00:45.6]}
22. Qh7+ {[%clk 0:01:17.9]} 1-0

[Event "*** Titled Tuesday Blitz"]
[Site "Chess.com"]
[Date "2020.04.21"]
[Round "3"]
[White "Alexchess1984"]
[Black "Gyapiking"]
[Result "1-0"]
[WhiteElo "2570"]
[BlackElo "2325"]
[TimeControl "180+1"]
[EndTime "10:26:31 PDT"]
[Termination "Alexchess1984 won by checkmate"]

1. e4 {[%clk 0:03:00.9]} 1... d6 {[%clk 0:02:59.1]} 2. Nc3 {[%clk 0:03:00.4]}
2... g6 {[%clk 0:02:58.7]} 3. d4 {[%clk 0:03:00.5]} 3... c6 {[%clk 0:02:57.9]}
4. h4 {[%clk 0:02:57.6]} 4... Nf6 {[%clk 0:02:56.9]} 5. f3 {[%clk 0:02:49.4]}
5... b5 {[%clk 0:02:54.6]} 6. g4 {[%clk 0:02:44.2]} 6... b4 {[%clk 0:02:53.2]}
7. Nce2 {[%clk 0:02:43.7]} 7... a5 {[%clk 0:02:53.3]} 8. h5 {[%clk 0:02:43.3]}
8... gxh5 {[%clk 0:02:49.4]} 9. g5 {[%clk 0:02:43.3]} 9... Nfd7 {[%clk
0:02:48.3]} 10. Ng3 {[%clk 0:02:37.7]} 10... Nb6 {[%clk 0:02:47.2]} 11. Nxh5
{[%clk 0:02:35.6]} 11... Ba6 {[%clk 0:02:46.8]} 12. Bxa6 {[%clk 0:02:34.9]}
12... Nxa6 {[%clk 0:02:46.6]} 13. Ne2 {[%clk 0:02:26.2]} 13... Qd7 {[%clk
0:02:45.8]} 14. Qd3 {[%clk 0:02:21.2]} 14... Nc7 {[%clk 0:02:44.1]} 15. a3
{[%clk 0:02:17.7]} 15... bxa3 {[%clk 0:02:29.6]} 16. Rxa3 {[%clk 0:02:15.8]}
16... a4 {[%clk 0:02:28.7]} 17. Ra1 {[%clk 0:02:10.8]} 17... Nb5 {[%clk
0:02:24.3]} 18. c4 {[%clk 0:02:10.1]} 18... Nc7 {[%clk 0:02:24.2]} 19. Nc3
{[%clk 0:02:01.7]} 19... d5 {[%clk 0:02:20.8]} 20. cxd5 {[%clk 0:01:57.5]} 20...
cxd5 {[%clk 0:02:20.1]} 21. e5 {[%clk 0:01:57.7]} 21... Nc4 {[%clk 0:02:12.6]}
22. b3 {[%clk 0:01:54.1]} 22... axb3 {[%clk 0:02:10.9]} 23. Rxa8+ {[%clk
0:01:52.5]} 23... Nxa8 {[%clk 0:02:10.7]} 24. Kf2 {[%clk 0:01:39]} 24... Nab6
{[%clk 0:02:06.7]} 25. Bf4 {[%clk 0:01:32.2]} 25... b2 {[%clk 0:02:04.8]} 26.
Rb1 {[%clk 0:01:26.6]} 26... Qe6 {[%clk 0:02:04.2]} 27. Nd1 {[%clk 0:01:21.8]}
27... Qg6 {[%clk 0:02:02.2]} 28. Nxb2 {[%clk 0:01:09.1]} 28... Qxh5 {[%clk
0:01:43.9]} 29. Nxc4 {[%clk 0:01:07.9]} 29... dxc4 {[%clk 0:01:44]} 30. Qe4
{[%clk 0:01:05.1]} 30... Bg7 {[%clk 0:01:34]} 31. Qc6+ {[%clk 0:00:59.4]} 31...
Kf8 {[%clk 0:01:26.3]} 32. Qa8+ {[%clk 0:00:57.9]} 32... Nxa8 {[%clk 0:01:25]}
33. Rb8# {[%clk 0:00:57.4]} 1-0

[Event "*** Titled Tuesday Blitz"]
[Site "Chess.com"]
[Date "2020.04.21"]
[Round "3"]
[White "ChristianAlm"]
[Black "kinga2008"]
[Result "1-0"]
[WhiteElo "2448"]
[BlackElo "2187"]
[TimeControl "180+1"]
[EndTime "10:26:32 PDT"]
[Termination "ChristianAlm won by resignation"]

1. d4 {[%clk 0:03:00.9]} 1... g6 {[%clk 0:02:57.6]} 2. e4 {[%clk 0:03:00.1]}
2... Bg7 {[%clk 0:02:58.5]} 3. Nc3 {[%clk 0:02:59.7]} 3... d6 {[%clk 0:02:59.4]}
4. Be3 {[%clk 0:02:57.1]} 4... Nf6 {[%clk 0:02:59.7]} 5. f3 {[%clk 0:02:56.9]}
5... O-O {[%clk 0:02:58.9]} 6. Qd2 {[%clk 0:02:56.9]} 6... Nbd7 {[%clk 0:02:55]}
7. h4 {[%clk 0:02:54.4]} 7... h5 {[%clk 0:02:54]} 8. O-O-O {[%clk 0:02:53.9]}
8... e5 {[%clk 0:02:53.2]} 9. Nh3 {[%clk 0:02:53.6]} 9... c6 {[%clk 0:02:49.6]}
10. dxe5 {[%clk 0:02:44.6]} 10... Nxe5 {[%clk 0:02:49.4]} 11. Qxd6 {[%clk
0:02:32.1]} 11... Qxd6 {[%clk 0:02:49.1]} 12. Rxd6 {[%clk 0:02:33]} 12... Bxh3
{[%clk 0:02:49.3]} 13. Rxh3 {[%clk 0:02:30.4]} 13... Rad8 {[%clk 0:02:49.5]} 14.
Rxd8 {[%clk 0:02:29.9]} 14... Rxd8 {[%clk 0:02:50.4]} 15. Bg5 {[%clk 0:02:27.5]}
15... Rd7 {[%clk 0:02:45.9]} 16. Be2 {[%clk 0:02:24]} 16... Nh7 {[%clk
0:02:44.8]} 17. Be3 {[%clk 0:02:20.8]} 17... a5 {[%clk 0:02:40.3]} 18. Rh1
{[%clk 0:02:09.3]} 18... b5 {[%clk 0:02:36.4]} 19. Rd1 {[%clk 0:02:04.3]} 19...
Rxd1+ {[%clk 0:02:35.7]} 20. Nxd1 {[%clk 0:02:05.2]} 20... Bf6 {[%clk
0:02:34.4]} 21. g3 {[%clk 0:02:03.5]} 21... g5 {[%clk 0:02:33.3]} 22. hxg5
{[%clk 0:02:00.8]} 22... Be7 {[%clk 0:02:31.2]} 23. f4 {[%clk 0:01:58.8]} 23...
Ng6 {[%clk 0:02:31]} 24. Bxh5 {[%clk 0:01:54.7]} 24... Kg7 {[%clk 0:02:26.9]}
25. Bd4+ {[%clk 0:01:50.6]} 25... f6 {[%clk 0:02:26.5]} 26. gxf6+ {[%clk
0:01:44.3]} 26... Nxf6 {[%clk 0:02:25.9]} 27. Bxg6 {[%clk 0:01:38.4]} 27... Kxg6
{[%clk 0:02:25.6]} 28. Bxf6 {[%clk 0:01:37.8]} 28... Bxf6 {[%clk 0:02:26.5]} 29.
g4 {[%clk 0:01:29.9]} 29... Bd4 {[%clk 0:02:24.5]} 30. Kd2 {[%clk 0:01:29]}
30... Bg1 {[%clk 0:02:22.2]} 31. Ke2 {[%clk 0:01:27.6]} 31... Kf6 {[%clk
0:02:18.5]} 32. Kf3 {[%clk 0:01:21]} 32... c5 {[%clk 0:02:11.2]} 33. e5+ {[%clk
0:01:20.5]} 33... Ke6 {[%clk 0:02:10.8]} 34. Ke4 {[%clk 0:01:20.5]} 34... Bh2
{[%clk 0:02:07]} 35. f5+ {[%clk 0:01:20.3]} 35... Ke7 {[%clk 0:02:07.1]} 36. g5
{[%clk 0:01:19.4]} 36... Kf7 {[%clk 0:02:06.5]} 37. g6+ {[%clk 0:01:13.2]} 37...
Kg7 {[%clk 0:02:05.3]} 38. Ne3 {[%clk 0:01:13.3]} 38... a4 {[%clk 0:02:02.2]}
39. b3 {[%clk 0:00:59.6]} 39... axb3 {[%clk 0:01:59.7]} 40. axb3 {[%clk
0:00:59]} 40... Bg3 {[%clk 0:01:59]} 41. Nd5 {[%clk 0:00:54.9]} 1-0

[Event "*** Titled Tuesday Blitz"]
[Site "Chess.com"]
[Date "2020.04.21"]
[Round "3"]
[White "12teen"]
[Black "kingofthenil"]
[Result "1-0"]
[WhiteElo "2761"]
[BlackElo "2530"]
[TimeControl "180+1"]
[EndTime "10:26:35 PDT"]
[Termination "12teen won by resignation"]

1. g3 {[%clk 0:03:00.9]} 1... d5 {[%clk 0:02:59.2]} 2. Bg2 {[%clk 0:03:00.5]}
2... Nf6 {[%clk 0:02:59.4]} 3. d3 {[%clk 0:02:57.5]} 3... e6 {[%clk 0:02:59.7]}
4. Nc3 {[%clk 0:02:57.7]} 4... Be7 {[%clk 0:02:44.1]} 5. Bd2 {[%clk 0:02:57.4]}
5... c5 {[%clk 0:02:43.5]} 6. e4 {[%clk 0:02:57.8]} 6... Nc6 {[%clk 0:02:43.1]}
7. f4 {[%clk 0:02:57.6]} 7... O-O {[%clk 0:02:15.9]} 8. Nf3 {[%clk 0:02:57.9]}
8... dxe4 {[%clk 0:02:11.8]} 9. dxe4 {[%clk 0:02:58.8]} 9... b6 {[%clk
0:02:12.2]} 10. Be3 {[%clk 0:02:47.4]} 10... Ba6 {[%clk 0:02:10.5]} 11. Qd2
{[%clk 0:02:35]} 11... Qxd2+ {[%clk 0:02:05.8]} 12. Nxd2 {[%clk 0:02:35.9]}
12... Nd4 {[%clk 0:02:03.7]} 13. O-O-O {[%clk 0:02:20.9]} 13... e5 {[%clk
0:01:41.7]} 14. h3 {[%clk 0:01:46.7]} 14... Rad8 {[%clk 0:01:39]} 15. fxe5
{[%clk 0:01:40.9]} 15... Nd7 {[%clk 0:01:38.8]} 16. Nd5 {[%clk 0:01:37]} 16...
Nc6 {[%clk 0:01:16.6]} 17. Bf4 {[%clk 0:01:27.1]} 17... Bb7 {[%clk 0:01:05.7]}
18. Nc4 {[%clk 0:01:24.8]} 18... Rfe8 {[%clk 0:00:55.7]} 19. e6 {[%clk
0:01:23.9]} 19... fxe6 {[%clk 0:00:52.4]} 20. Nc7 {[%clk 0:01:24.3]} 1-0